[Event "European Womens-ch 2025"]
[Site "Rhodes"]
[Date "2025.04.11"]
[Round "11.42"]
[White "Sivanandan, Bodhana"]
[Black "Terbe, Zsuzsanna"]
[Result "1/2-1/2"]
[Annotator "ChessBase"]
[ECO "B31"]
[WhiteElo "2073"]
[BlackElo "2179"]
[PlyCount "119"]
[EventDate "2025.03.29"]
[EventType "swiss"]
[EventCountry "GRE"]
[SourceTitle "playchess.com"]
[Source "ChessBase"]
[SourceQuality "1"]
[TimeControl "40/5400+30:1800+30"]

1. e4 {[%emt 0:00:50]} c5 {[%emt 0:00:32]} 2. Nf3 {[%emt 0:01:10]} Nc6 {[%emt 0:00:11]} 3. Bb5 {[%emt 0:00:37]} g6 {[%emt 0:00:07]} 4. O-O {[%emt 0:00:35]} Bg7 {[%emt 0:00:07]} 5. c3 {[%emt 0:00:42]} e5 {[%emt 0:00:10]} 6. d4 {[%emt 0:01:14]} cxd4 {[%emt 0:00:15]} 7. cxd4 {[%emt 0:00:30]} exd4 {[%emt 0:00:09]} 8. Bf4 {[%emt 0:05:27]} a6 {[%emt 0:01:11]} 9. Bc4 {[%emt 0:00:38]} d6 {[%emt 0:00:35]} 10. h3 {[%emt 0:01:38]} Nge7 {[%emt 0:02:27]} 11. Nbd2 {[%emt 0:02:53]} O-O {[%emt 0:02:02]} 12. Bd5 {[%emt 0:04:14]} b5 {[%emt 0:24:02]} 13. Nb3 {[%emt 0:04:03]} Bb7 {[%emt 0:03:43]} 14. Bxc6 {[%emt 0:02:52]} Nxc6 {[%emt 0:02:34]} 15. Re1 {[%emt 0:03:10]} Re8 {[%emt 0:00:40]} 16. Rc1 {[%emt 0:09:30]} h6 {[%emt 0:06:35]} 17. Qd2 {[%emt 0:09:45]} Kh7 {[%emt 0:00:10]} 18. Rcd1 {[%emt 0:05:45]} Qf6 {[%emt 0:02:49]} 19. Bg3 {[%emt 0:02:51]} Rac8 {[%emt 0:02:58]} 20. Bh4 {[%emt 0:13:08]} g5 {[%emt 0:03:59]} 21. Bg3 {[%emt 0:00:18]} Qg6 {[%emt 0:05:06]} 22. Nbxd4 {[%emt 0:08:05]} Nxd4 {[%emt 0:03:42]} 23. Nxd4 {[%emt 0:00:10]} Rxe4 {[%emt 0:02:03]} 24. Rxe4 {[%emt 0:00:35]} Bxe4 {[%emt 0:01:01]} 25. b3 {[%emt 0:02:22]} Qf6 {[%emt 0:05:48]} 26. Qa5 {[%emt 0:02:24]} Rc5 {[%emt 0:03:54]} 27. Ne2 {[%emt 0:06:45]} Qb2 {[%emt 0:07:00]} 28. Qe1 {[%emt 0:02:54]} d5 {[%emt 0:02:14]} 29. f3 {[%emt 0:02:52]} Bc2 {[%emt 0:06:13]} 30. Rd2 {[%emt 0:01:08]} d4 {[%emt 0:00:26]} 31. Bf2 {[%emt 0:01:09]} Rd5 {[%emt 0:00:24]} 32. Ng3 {[%emt 0:00:38]} Re5 {[%emt 0:02:31]} 33. Qf1 {[%emt 0:02:23]} d3 {[%emt 0:01:13]} 34. Qxd3+ {[%emt 0:00:34]} Bxd3 {[%emt 0:00:12]} 35. Rxb2 {[%emt 0:00:05]} b4 {[%emt 0:04:10]} 36. Rd2 {[%emt 0:00:28]} Bb1 {[%emt 0:00:11]} 37. Nh5 {[%emt 0:02:06]} Bf8 {[%emt 0:01:49]} 38. Nf6+ {[%emt 0:00:32]} Kg6 {[%emt 0:02:03]} 39. Nd7 {[%emt 0:00:43]} Re8 {[%emt 0:00:07]} 40. Nxf8+ {[%emt 0:00:00]} Rxf8 {[%emt 0:00:00]} 41. Bc5 {[%emt 0:00:30]} Rc8 {[%emt 0:06:26]} 42. Bxb4 {[%emt 0:01:11]} Rc2 {[%emt 0:02:48]} 43. Rd6+ {[%emt 0:03:06]} Kh7 {[%emt 0:01:06]} 44. a3 {[%emt 0:05:12]} Ba2 {[%emt 0:00:38]} 45. Rxa6 {[%emt 0:02:23]} Bxb3 {[%emt 0:00:06]} 46. Rd6 {[%emt 0:01:08]} Ra2 {[%emt 0:00:57]} 47. Rd4 {[%emt 0:00:36]} Kg6 {[%emt 0:01:09]} 48. h4 {[%emt 0:00:12]} Be6 {[%emt 0:01:13]} 49. Kh2 {[%emt 0:00:37]} Ra1 {[%emt 0:02:25]} 50. Kg3 {[%emt 0:01:13]} Ra2 {[%emt 0:00:11]} 51. hxg5 {[%emt 0:01:38]} hxg5 {[%emt 0:00:07]} 52. Be7 {[%emt 0:03:05]} Rc2 {[%emt 0:04:14]} 53. Bb4 {[%emt 0:04:51]} Ra2 {[%emt 0:00:38]} 54. Rd8 {[%emt 0:00:14]} f5 {[%emt 0:04:04]} 55. Rd6 {[%emt 0:06:09]} Kf7 {[%emt 0:00:18]} 56. Rd2 {[%emt 0:00:35]} Rxd2 {[%emt 0:00:31]} 57. Bxd2 {[%emt 0:00:09]} g4 {[%emt 0:00:29]} 58. fxg4 {[%emt 0:00:59]} fxg4 {[%emt 0:00:05]} 59. Kf4 {[%emt 0:00:11]} Bd5 {[%emt 0:00:16]} 60. g3 {[%emt 0:00:22]} 1/2-1/2

[Event "European Womens-ch 2025"]
[Site "Rhodes"]
[Date "2025.04.11"]
[Round "11.43"]
[White "Grapsa, Georgia"]
[Black "Bochnickova, Simona"]
[Result "0-1"]
[Annotator "ChessBase"]
[ECO "E11"]
[WhiteElo "2065"]
[BlackElo "2167"]
[PlyCount "84"]
[EventDate "2025.03.29"]
[EventType "swiss"]
[EventCountry "GRE"]
[SourceTitle "playchess.com"]
[Source "ChessBase"]
[SourceQuality "1"]
[TimeControl "40/5400+30:1800+30"]

1. d4 {[%emt 0:02:53]} Nf6 {[%emt 0:00:05]} 2. c4 {[%emt 0:00:15]} e6 {[%emt 0:00:04]} 3. Nf3 {[%emt 0:00:18]} d5 {[%emt 0:00:05]} 4. g3 {[%emt 0:00:13]} Bb4+ {[%emt 0:00:05]} 5. Bd2 {[%emt 0:00:07]} a5 {[%emt 0:00:04]} 6. a3 {[%emt 0:00:35]} Be7 {[%emt 0:00:06]} 7. Bg2 {[%emt 0:01:42]} c6 {[%emt 0:00:05]} 8. Qc2 {[%emt 0:00:57]} O-O {[%emt 0:00:07]} 9. O-O {[%emt 0:00:03]} b6 {[%emt 0:00:06]} 10. Ne5 {[%emt 0:06:56]} Nfd7 {[%emt 0:04:49]} 11. cxd5 {[%emt 0:08:04]} cxd5 {[%emt 0:00:06]} 12. Bf4 {[%emt 0:02:57]} Ba6 {[%emt 0:04:09]} 13. Rc1 {[%emt 0:05:07]} Nxe5 {[%emt 0:01:19]} 14. Bxe5 {[%emt 0:03:57]} Nd7 {[%emt 0:00:16]} 15. Bc7 {[%emt 0:02:01]} Qc8 {[%emt 0:03:31]} 16. e4 {[%emt 0:06:59]} Qb7 {[%emt 0:09:37]} 17. exd5 {[%emt 0:00:36]} exd5 {[%emt 0:00:05]} 18. Qf5 {[%emt 0:05:15]} Nf6 {[%emt 0:00:44]} 19. Be5 {[%emt 0:01:17]} g6 {[%emt 0:14:13]} 20. Qf4 {[%emt 0:01:32]} Nh5 {[%emt 0:02:22]} 21. Qh6 {[%emt 0:02:10]} Qd7 {[%emt 0:07:03]} 22. Rc7 {[%emt 0:02:58]} Qd8 {[%emt 0:04:15]} 23. Rxe7 {[%emt 0:03:57]} Qxe7 {[%emt 0:00:54]} 24. Nc3 {[%emt 0:00:03]} Bc4 {[%emt 0:14:43]} 25. g4 {[%emt 0:01:41]} f6 {[%emt 0:03:16]} 26. Nxd5 {[%emt 0:12:44]} Qf7 {[%emt 0:00:41]} 27. gxh5 {[%emt 0:03:28]} fxe5 {[%emt 0:00:23]} 28. hxg6 {[%emt 0:00:47]} hxg6 {[%emt 0:00:24]} 29. Rc1 {[%emt 0:06:39]} Rad8 {[%emt 0:03:14]} 30. Nxb6 {[%emt 0:10:06]} Rxd4 {[%emt 0:00:28]} 31. f4 {[%emt 0:04:14]} Rxf4 {[%emt 0:03:20]} 32. Nxc4 {[%emt 0:00:53]} Rxc4 {[%emt 0:00:13]} 33. Rd1 {[%emt 0:00:29]} Rg4 {[%emt 0:03:55]} 34. Qe3 {[%emt 0:01:09]} Qf3 {[%emt 0:00:48]} 35. Qxf3 {[%emt 0:00:59]} Rxf3 {[%emt 0:00:05]} 36. Kh1 {[%emt 0:00:07]} Rf2 {[%emt 0:00:47]} 37. Bd5+ {[%emt 0:02:40]} Kg7 {[%emt 0:00:06]} 38. Be6 {[%emt 0:02:02]} Rgg2 {[%emt 0:01:11]} 39. b4 {[%emt 0:00:37]} Rxh2+ {[%emt 0:00:30]} 40. Kg1 {[%emt 0:00:00]} Rfg2+ {[%emt 0:00:00]} 41. Kf1 {[%emt 0:00:04]} Rh1+ {[%emt 0:00:21]} 42. Kxg2 {[%emt 0:00:03]} Rxd1 {[%emt 0:52:55]} 0-1

[Event "European Womens-ch 2025"]
[Site "Rhodes"]
[Date "2025.04.11"]
[Round "11.44"]
[White "Krkyasharyan, Sona"]
[Black "Yildiz, Elif Zeren"]
[Result "1/2-1/2"]
[Annotator "ChessBase"]
[ECO "E16"]
[WhiteElo "1989"]
[BlackElo "2160"]
[PlyCount "41"]
[EventDate "2025.03.29"]
[EventType "swiss"]
[EventCountry "GRE"]
[SourceTitle "playchess.com"]
[Source "ChessBase"]
[SourceQuality "1"]
[TimeControl "40/5400+30:1800+30"]

1. d4 {[%emt 0:00:02]} Nf6 {[%emt 0:00:04]} 2. c4 {[%emt 0:00:05]} e6 {[%emt 0:00:04]} 3. Nc3 {[%emt 0:00:04]} Bb4 {[%emt 0:00:05]} 4. Nf3 {[%emt 0:00:06]} b6 {[%emt 0:00:07]} 5. Bd2 {[%emt 0:00:06]} Bb7 {[%emt 0:00:23]} 6. g3 {[%emt 0:00:06]} O-O {[%emt 0:02:43]} 7. Bg2 {[%emt 0:00:05]} d6 {[%emt 0:00:19]} 8. O-O {[%emt 0:00:08]} Nbd7 {[%emt 0:01:53]} 9. Rc1 {[%emt 0:00:54]} Qe7 {[%emt 0:04:49]} 10. a3 {[%emt 0:12:34]} Bxc3 {[%emt 0:00:05]} 11. Bxc3 {[%emt 0:00:03]} Ne4 {[%emt 0:01:11]} 12. Be1 {[%emt 0:00:54]} f5 {[%emt 0:02:07]} 13. d5 {[%emt 0:08:58]} e5 {[%emt 0:06:22]} 14. Nh4 {[%emt 0:01:11]} Ng5 {[%emt 0:05:42]} 15. f4 {[%emt 0:08:10]} exf4 {[%emt 0:00:57]} 16. Rxf4 {[%emt 0:00:04]} g6 {[%emt 0:01:10]} 17. Bc3 {[%emt 0:05:44]} Rae8 {[%emt 0:06:52]} 18. Qd4 {[%emt 0:01:14]} Qe3+ {[%emt 0:03:05]} 19. Qxe3 {[%emt 0:01:45]} Rxe3 {[%emt 0:00:03]} 20. Rc2 {[%emt 0:03:19]} Nf6 {[%emt 0:06:58]} 21. Rf1 {[%emt 0:08:56]} 1/2-1/2

[Event "European Womens-ch 2025"]
[Site "Rhodes"]
[Date "2025.04.11"]
[Round "11.45"]
[White "Tirpan, Ceren"]
[Black "Eric, Jovana"]
[Result "0-1"]
[Annotator "NA"]
[ECO "A25"]
[WhiteElo "1996"]
[BlackElo "2147"]
[PlyCount "94"]
[EventDate "2025.03.29"]
[EventType "swiss"]
[EventCountry "GRE"]
[SourceTitle "playchess.com"]
[Source "ChessBase"]
[SourceQuality "1"]
[TimeControl "40/5400+30:1800+30"]

1. c4 {[%emt 0:00:03]} e5 {[%emt 0:00:06]} 2. g3 {[%emt 0:00:03]} Nf6 {[%emt 0:00:06]} 3. Bg2 {[%emt 0:00:04]} Bc5 {[%emt 0:00:15]} 4. Nc3 {[%emt 0:00:14]} O-O {[%emt 0:00:13]} 5. e3 {[%emt 0:00:57]} Nc6 {[%emt 0:01:13]} 6. Nge2 {[%emt 0:00:07]} d6 {[%emt 0:00:42]} 7. O-O {[%emt 0:00:28]} Bb6 {[%emt 0:01:12]} 8. d4 {[%emt 0:05:15]} Re8 {[%emt 0:03:58]} 9. d5 {[%emt 0:09:51]} Ne7 {[%emt 0:01:11]} 10. Na4 {[%emt 0:01:03]} e4 {[%emt 0:02:19]} 11. Nxb6 {[%emt 0:03:08]} axb6 {[%emt 0:00:05]} 12. Nd4 {[%emt 0:05:19]} Ng6 {[%emt 0:04:54]} 13. Qc2 {[%emt 0:07:01]} Bd7 {[%emt 0:04:23]} 14. f4 {[%emt 0:16:03]} exf3 {[%emt 0:02:10]} 15. Nxf3 {[%emt 0:00:30]} b5 {[%emt 0:09:26]} 16. cxb5 {[%emt 0:08:23]} Bxb5 {[%emt 0:01:36]} 17. Re1 {[%emt 0:00:26]} Ne5 {[%emt 0:06:30]} 18. Nxe5 {[%emt 0:01:08]} Rxe5 {[%emt 0:00:06]} 19. e4 {[%emt 0:09:01]} Nxd5 {[%emt 0:03:59]} 20. Bd2 {[%emt 0:00:05]} Nb6 {[%emt 0:02:25]} 21. Bc3 {[%emt 0:01:20]} Re8 {[%emt 0:02:14]} 22. e5 {[%emt 0:04:00]} d5 {[%emt 0:06:11]} 23. Bd4 {[%emt 0:00:22]} Bc6 {[%emt 0:02:17]} 24. b3 {[%emt 0:01:50]} Nd7 {[%emt 0:02:03]} 25. a4 {[%emt 0:05:00]} Nf8 {[%emt 0:02:03]} 26. b4 {[%emt 0:00:46]} Ne6 {[%emt 0:01:37]} 27. Bb2 {[%emt 0:00:21]} Bd7 {[%emt 0:03:48]} 28. Bxd5 {[%emt 0:08:44]} Bxa4 {[%emt 0:02:02]} 29. Qc4 {[%emt 0:00:55]} c6 {[%emt 0:07:22]} 30. Bg2 {[%emt 0:03:07]} Bb5 {[%emt 0:02:25]} 31. Qc2 {[%emt 0:00:55]} Rxa1 {[%emt 0:01:15]} 32. Bxa1 {[%emt 0:00:23]} Bd3 {[%emt 0:04:58]} 33. Qf2 {[%emt 0:01:34]} Qe7 {[%emt 0:01:27]} 34. Rd1 {[%emt 0:00:58]} Ba6 {[%emt 0:01:41]} 35. Rd6 {[%emt 0:00:35]} Nf8 {[%emt 0:06:10]} 36. Bh3 {[%emt 0:05:20]} Bc4 {[%emt 0:01:47]} 37. Qd4 {[%emt 0:02:18]} Bd5 {[%emt 0:03:48]} 38. Bc3 {[%emt 0:00:22]} Ne6 {[%emt 0:03:56]} 39. Bxe6 {[%emt 0:01:19]} fxe6 {[%emt 0:00:06]} 40. b5 {[%emt 0:00:00]} Rf8 {[%emt 0:00:00]} 41. Bd2 {[%emt 0:13:17]} Qf7 {[%emt 0:03:29]} 42. Qf4 {[%emt 0:03:05]} Qg6 {[%emt 0:02:50]} 43. Qe3 {[%emt 0:01:19]} Qb1+ {[%emt 0:01:45]} 44. Qe1 {[%emt 0:01:41]} Qd3 {[%emt 0:02:32]} 45. bxc6 {[%emt 0:04:46]} bxc6 {[%emt 0:01:02]} 46. Bf4 {[%emt 0:03:44]} Qf3 {[%emt 0:00:25]} 47. Qd2 {[%emt 0:00:24]} g5 {[%emt 0:00:27]} 0-1

[Event "European Womens-ch 2025"]
[Site "Rhodes"]
[Date "2025.04.11"]
[Round "11.46"]
[White "Piddubna, Bozhena"]
[Black "Tsetskhladze, Mariam"]
[Result "1-0"]
[Annotator "NA"]
[ECO "E52"]
[WhiteElo "2145"]
[BlackElo "2105"]
[PlyCount "165"]
[EventDate "2025.03.29"]
[EventType "swiss"]
[EventCountry "GRE"]
[SourceTitle "playchess.com"]
[Source "ChessBase"]
[SourceQuality "1"]
[TimeControl "40/5400+30:1800+30"]

1. d4 {[%emt 0:01:09]} Nf6 {[%emt 0:01:29]} 2. c4 {[%emt 0:00:05]} e6 {[%emt 0:00:07]} 3. Nc3 {[%emt 0:00:10]} Bb4 {[%emt 0:00:11]} 4. e3 {[%emt 0:00:05]} O-O {[%emt 0:00:16]} 5. Bd2 {[%emt 0:00:13]} d5 {[%emt 0:00:27]} 6. Nf3 {[%emt 0:00:35]} b6 {[%emt 0:00:27]} 7. cxd5 {[%emt 0:00:36]} exd5 {[%emt 0:00:06]} 8. Bd3 {[%emt 0:00:43]} Bb7 {[%emt 0:00:20]} 9. Rc1 {[%emt 0:00:23]} Be7 {[%emt 0:00:50]} 10. O-O {[%emt 0:00:53]} c5 {[%emt 0:02:58]} 11. Ne5 {[%emt 0:00:34]} Nc6 {[%emt 0:04:12]} 12. a3 {[%emt 0:00:16]} Bd6 {[%emt 0:24:36]} 13. Ng4 {[%emt 0:00:59]} cxd4 {[%emt 0:14:55]} 14. exd4 {[%emt 0:00:27]} Nxd4 {[%emt 0:13:44]} 15. Bg5 {[%emt 0:00:22]} Be7 {[%emt 0:01:08]} 16. Bxh7+ {[%emt 0:03:24]} Kxh7 {[%emt 0:01:07]} 17. Qxd4 {[%emt 0:00:36]} Nxg4 {[%emt 0:00:16]} 18. Bxe7 {[%emt 0:00:09]} Qxe7 {[%emt 0:00:14]} 19. Qxg4 {[%emt 0:00:21]} Rad8 {[%emt 0:06:11]} 20. Rcd1 {[%emt 0:08:04]} Kg8 {[%emt 0:03:39]} 21. Rd4 {[%emt 0:00:44]} Rfe8 {[%emt 0:04:30]} 22. h3 {[%emt 0:02:42]} Qf6 {[%emt 0:07:59]} 23. Rfd1 {[%emt 0:03:49]} Re5 {[%emt 0:01:55]} 24. Qh4 {[%emt 0:06:46]} Qxh4 {[%emt 0:02:04]} 25. Rxh4 {[%emt 0:00:06]} Rde8 {[%emt 0:02:50]} 26. Rd2 {[%emt 0:05:57]} Bc6 {[%emt 0:01:43]} 27. Rhd4 {[%emt 0:00:38]} Rd8 {[%emt 0:04:42]} 28. f4 {[%emt 0:04:11]} Re7 {[%emt 0:00:58]} 29. Kf2 {[%emt 0:02:46]} Red7 {[%emt 0:00:07]} 30. g4 {[%emt 0:04:04]} g6 {[%emt 0:00:22]} 31. Kg3 {[%emt 0:01:00]} Kg7 {[%emt 0:00:18]} 32. Re2 {[%emt 0:02:11]} Kf8 {[%emt 0:01:07]} 33. h4 {[%emt 0:00:55]} Re7 {[%emt 0:00:33]} 34. f5 {[%emt 0:01:54]} gxf5 {[%emt 0:00:32]} 35. g5 {[%emt 0:05:36]} Rxe2 {[%emt 0:00:20]} 36. Nxe2 {[%emt 0:00:01]} Re8 {[%emt 0:00:19]} 37. Nc3 {[%emt 0:00:32]} f6 {[%emt 0:00:54]} 38. Kf4 {[%emt 0:00:54]} fxg5+ {[%emt 0:00:25]} 39. hxg5 {[%emt 0:02:48]} Kg7 {[%emt 0:00:25]} 40. Kxf5 {[%emt 0:00:00]} Bd7+ {[%emt 0:00:00]} 41. Kf4 {[%emt 0:02:06]} Rf8+ {[%emt 0:04:14]} 42. Ke5 {[%emt 0:00:22]} Kg6 {[%emt 0:03:14]} 43. Rxd5 {[%emt 0:06:26]} Bf5 {[%emt 0:01:38]} 44. Rd2 {[%emt 0:01:11]} Kxg5 {[%emt 0:05:20]} 45. Rg2+ {[%emt 0:00:08]} Kh6 {[%emt 0:00:26]} 46. Nd5 {[%emt 0:05:07]} Bd3 {[%emt 0:04:42]} 47. Ne7 {[%emt 0:04:15]} Rf7 {[%emt 0:04:31]} 48. Ng8+ {[%emt 0:02:02]} Kh5 {[%emt 0:01:36]} 49. Nf6+ {[%emt 0:00:20]} Kh6 {[%emt 0:01:01]} 50. Rg3 {[%emt 0:01:58]} Bg6 {[%emt 0:01:48]} 51. Ke6 {[%emt 0:02:12]} Rc7 {[%emt 0:01:38]} 52. Ng4+ {[%emt 0:02:08]} Kh7 {[%emt 0:00:18]} 53. Ne5 {[%emt 0:00:06]} Bb1 {[%emt 0:02:28]} 54. Rg2 {[%emt 0:05:59]} Rc1 {[%emt 0:00:46]} 55. Kd6 {[%emt 0:03:08]} Be4 {[%emt 0:00:35]} 56. Rf2 {[%emt 0:00:26]} Kh6 {[%emt 0:00:43]} 57. Rf4 {[%emt 0:01:55]} Bh1 {[%emt 0:01:20]} 58. Ke6 {[%emt 0:01:35]} Kg5 {[%emt 0:00:45]} 59. Rg4+ {[%emt 0:00:08]} Kh5 {[%emt 0:00:11]} 60. Rg7 {[%emt 0:00:58]} a5 {[%emt 0:00:12]} 61. Nd3 {[%emt 0:01:50]} Rf1 {[%emt 0:00:45]} 62. Ke5 {[%emt 0:00:44]} Kh6 {[%emt 0:00:39]} 63. Rg3 {[%emt 0:00:37]} b5 {[%emt 0:00:38]} 64. Kd4 {[%emt 0:00:47]} a4 {[%emt 0:00:54]} 65. Re3 {[%emt 0:06:04]} Kg7 {[%emt 0:02:20]} 66. Re1 {[%emt 0:00:59]} Bg2 {[%emt 0:00:40]} 67. Re5 {[%emt 0:04:23]} Bc6 {[%emt 0:00:16]} 68. Kc5 {[%emt 0:01:03]} Rf6 {[%emt 0:00:15]} 69. Nb4 {[%emt 0:00:26]} Bf3 {[%emt 0:00:19]} 70. Kxb5 {[%emt 0:05:23]} Bd1 {[%emt 0:00:04]} 71. Nd3 {[%emt 0:00:10]} Rf8 {[%emt 0:01:34]} 72. Re1 {[%emt 0:05:00]} Rb8+ {[%emt 0:00:44]} 73. Kc5 {[%emt 0:00:17]} Bc2 {[%emt 0:00:27]} 74. Nb4 {[%emt 0:00:05]} Bb3 {[%emt 0:00:06]} 75. Rf1 {[%emt 0:00:26]} Rc8+ {[%emt 0:00:26]} 76. Nc6 {[%emt 0:00:17]} Bc2 {[%emt 0:01:04]} 77. Rf4 {[%emt 0:00:06]} Re8 {[%emt 0:00:32]} 78. Nd4 {[%emt 0:00:42]} Rc8+ {[%emt 0:00:33]} 79. Kd6 {[%emt 0:01:47]} Bd1 {[%emt 0:00:29]} 80. Nf5+ {[%emt 0:08:25]} Kh7 {[%emt 0:00:31]} 81. Rh4+ {[%emt 0:00:08]} Bh5 {[%emt 0:00:31]} 82. Rxh5+ {[%emt 0:00:07]} Kg6 {[%emt 0:00:03]} 83. Ne7+ {[%emt 0:00:06]} 1-0

[Event "European Womens-ch 2025"]
[Site "Rhodes"]
[Date "2025.04.11"]
[Round "11.47"]
[White "Ciolacu, Alessia-Mihaela"]
[Black "Rida, Ruqayyah"]
[Result "0-1"]
[Annotator "NA"]
[ECO "A60"]
[WhiteElo "2136"]
[BlackElo "2065"]
[PlyCount "100"]
[EventDate "2025.03.29"]
[EventType "swiss"]
[EventCountry "GRE"]
[SourceTitle "playchess.com"]
[Source "ChessBase"]
[SourceQuality "1"]
[TimeControl "40/5400+30:1800+30"]

1. d4 {[%emt 0:01:14]} Nf6 {[%emt 0:00:11]} 2. c4 {[%emt 0:00:06]} e6 {[%emt 0:00:19]} 3. g3 {[%emt 0:00:08]} c5 {[%emt 0:00:21]} 4. d5 {[%emt 0:00:43]} exd5 {[%emt 0:00:18]} 5. cxd5 {[%emt 0:00:06]} d6 {[%emt 0:00:12]} 6. a4 {[%emt 0:00:22]} g6 {[%emt 0:00:19]} 7. Ra3 {[%emt 0:00:15]} Nbd7 {[%emt 0:02:19]} 8. Re3+ {[%emt 0:08:18]} Be7 {[%emt 0:01:13]} 9. Bg2 {[%emt 0:00:20]} O-O {[%emt 0:03:23]} 10. Ra3 {[%emt 0:09:27]} Re8 {[%emt 0:04:30]} 11. Nf3 {[%emt 0:07:42]} Bf8 {[%emt 0:05:20]} 12. Nfd2 {[%emt 0:12:12]} Ne5 {[%emt 0:10:26]} 13. O-O {[%emt 0:02:40]} Bg7 {[%emt 0:03:48]} 14. Nc3 {[%emt 0:09:36]} Bd7 {[%emt 0:03:29]} 15. h3 {[%emt 0:06:03]} g5 {[%emt 0:07:09]} 16. Nde4 {[%emt 0:03:20]} Nxe4 {[%emt 0:03:45]} 17. Nxe4 {[%emt 0:00:08]} g4 {[%emt 0:00:51]} 18. hxg4 {[%emt 0:10:35]} Bxg4 {[%emt 0:01:02]} 19. b3 {[%emt 0:01:03]} Qd7 {[%emt 0:04:10]} 20. Bg5 {[%emt 0:01:51]} f5 {[%emt 0:13:55]} 21. Nf6+ {[%emt 0:01:09]} Bxf6 {[%emt 0:00:09]} 22. Bxf6 {[%emt 0:00:03]} Qf7 {[%emt 0:01:54]} 23. Bxe5 {[%emt 0:10:57]} Rxe5 {[%emt 0:00:19]} 24. f3 {[%emt 0:00:19]} Bh5 {[%emt 0:04:21]} 25. g4 {[%emt 0:00:39]} Bg6 {[%emt 0:00:40]} 26. gxf5 {[%emt 0:01:05]} Qxf5 {[%emt 0:00:53]} 27. e4 {[%emt 0:04:08]} Qf4 {[%emt 0:02:13]} 28. Qc1 {[%emt 0:00:26]} Qg3 {[%emt 0:05:32]} 29. Qe1 {[%emt 0:00:30]} Qf4 {[%emt 0:00:15]} 30. Qc1 {[%emt 0:00:36]} Rf8 {[%emt 0:00:38]} 31. Qxf4 {[%emt 0:01:33]} Rxf4 {[%emt 0:00:02]} 32. Ra2 {[%emt 0:01:28]} Kg7 {[%emt 0:04:25]} 33. Re2 {[%emt 0:01:09]} Kf6 {[%emt 0:01:42]} 34. Kf2 {[%emt 0:00:26]} Bxe4 {[%emt 0:17:27]} 35. Kg3 {[%emt 0:05:46]} Bd3 {[%emt 0:00:00]} 36. Rxe5 {[%emt 0:01:03]} dxe5 {[%emt 0:00:00]} 37. Rc1 {[%emt 0:00:12]} b6 {[%emt 0:00:00]} 38. Bh3 {[%emt 0:00:49]} h5 {[%emt 0:00:00]} 39. d6 {[%emt 0:00:38]} Rd4 {[%emt 0:00:00]} 40. Rd1 {[%emt 0:00:00]} Bc2 {[%emt 0:00:00]} 41. Rxd4 {[%emt 0:05:45]} exd4 {[%emt 0:00:00]} 42. Kf4 {[%emt 0:03:56]} Bxb3 {[%emt 0:00:00]} 43. Bd7 {[%emt 0:02:00]} c4 {[%emt 0:00:00]} 44. Ke4 {[%emt 0:02:42]} c3 {[%emt 0:00:00]} 45. Kd3 {[%emt 0:00:21]} Bc4+ {[%emt 0:00:00]} 46. Kc2 {[%emt 0:00:17]} Ke5 {[%emt 0:00:19]} 47. Bg4 {[%emt 0:01:20]} Kxd6 {[%emt 0:00:06]} 48. Bxh5 {[%emt 0:00:06]} Kc5 {[%emt 0:00:17]} 49. f4 {[%emt 0:04:29]} Kb4 {[%emt 0:00:20]} 50. Bg6 {[%emt 0:00:11]} d3+ {[%emt 0:00:34]} 0-1

[Event "European Womens-ch 2025"]
[Site "Rhodes"]
[Date "2025.04.11"]
[Round "11.48"]
[White "Cornileau, Juliette"]
[Black "Shuqja, Klean"]
[Result "1/2-1/2"]
[Annotator "ChessBase"]
[ECO "B32"]
[WhiteElo "2130"]
[BlackElo "2049"]
[PlyCount "68"]
[EventDate "2025.03.29"]
[EventType "swiss"]
[EventCountry "GRE"]
[SourceTitle "playchess.com"]
[Source "ChessBase"]
[SourceQuality "1"]
[TimeControl "40/5400+30:1800+30"]

1. e4 {[%emt 0:00:06]} c5 {[%emt 0:05:32]} 2. Nf3 {[%emt 0:00:27]} Nc6 {[%emt 0:00:05]} 3. d4 {[%emt 0:00:05]} cxd4 {[%emt 0:00:02]} 4. Nxd4 {[%emt 0:00:06]} e5 {[%emt 0:00:04]} 5. Nb5 {[%emt 0:00:21]} d6 {[%emt 0:00:15]} 6. N1c3 {[%emt 0:02:27]} a6 {[%emt 0:00:07]} 7. Na3 {[%emt 0:00:03]} b5 {[%emt 0:00:15]} 8. Nd5 {[%emt 0:00:04]} Nge7 {[%emt 0:00:13]} 9. c4 {[%emt 0:02:54]} Nxd5 {[%emt 0:00:16]} 10. cxd5 {[%emt 0:11:52]} Ne7 {[%emt 0:05:39]} 11. Bd3 {[%emt 0:06:17]} g6 {[%emt 0:02:03]} 12. Nc2 {[%emt 0:06:42]} Bg7 {[%emt 0:01:05]} 13. a4 {[%emt 0:00:23]} bxa4 {[%emt 0:08:41]} 14. Rxa4 {[%emt 0:01:23]} Bd7 {[%emt 0:00:57]} 15. Ra3 {[%emt 0:02:46]} a5 {[%emt 0:05:44]} 16. O-O {[%emt 0:14:20]} O-O {[%emt 0:00:16]} 17. Ne3 {[%emt 0:04:03]} f5 {[%emt 0:05:03]} 18. Nc4 {[%emt 0:02:55]} fxe4 {[%emt 0:07:49]} 19. Bxe4 {[%emt 0:14:28]} Bb5 {[%emt 0:03:53]} 20. Bd3 {[%emt 0:00:06]} e4 {[%emt 0:26:22]} 21. Be2 {[%emt 0:00:29]} Nf5 {[%emt 0:02:46]} 22. Nd2 {[%emt 0:09:27]} Bxe2 {[%emt 0:03:57]} 23. Qxe2 {[%emt 0:00:04]} Nd4 {[%emt 0:00:21]} 24. Qg4 {[%emt 0:07:40]} Rf4 {[%emt 0:01:31]} 25. Qd1 {[%emt 0:00:04]} Qf6 {[%emt 0:08:52]} 26. Nc4 {[%emt 0:06:06]} Rf5 {[%emt 0:00:52]} 27. Be3 {[%emt 0:03:56]} Rxd5 {[%emt 0:03:24]} 28. Bxd4 {[%emt 0:00:20]} Rxd4 {[%emt 0:01:17]} 29. Qe2 {[%emt 0:00:52]} d5 {[%emt 0:01:38]} 30. Ne3 {[%emt 0:01:51]} h5 {[%emt 0:01:36]} 31. Qb5 {[%emt 0:01:39]} Rd2 {[%emt 0:02:08]} 32. Rxa5 {[%emt 0:01:36]} Rxa5 {[%emt 0:03:04]} 33. Qxa5 {[%emt 0:00:02]} Qxb2 {[%emt 0:00:40]} 34. Nxd5 {[%emt 0:00:43]} Qd4 {[%emt 0:00:29]} 1/2-1/2